Cogmind - Beta 14 @@@ ROGUE MODE // 2025.01.06 @ 12:51:22 Player: Derk Result: Destroyed by G-47 Trooper with Particle Gun Performance ------------- Evolutions (3) 1500 Regions Visited (8) 1600 Robots Destroyed (114) 570 Value Destroyed (4313) 4313 Prototype IDs (22) 440 Alien Tech Used (0) 0 Bonus (1744) 1744 TOTAL SCORE: 10167 Bonus ------- High Alert Combat Kills 247 Follower Combat Kills 132 Entered Garrisons 400 Used RIF Installer 1000 Friendly Fire -35 Cogmind --------- Core Integrity 0/700 Matter 300/300 Energy 390/390 System Corruption 30% Temperature Cool (9) Movement Rolling (155) Ox5 Location -7/Storage Parts ------- > --- POWER (2) -------- Heavy Deuterium Engine Meta Core > --- PROPULSION (3+1) - Wheel Armored Wheel Combat Airjet (fused) (+) > --- UTILITY (6+1) ---- Large Storage Unit Launcher Guidance Computer (+) Transmission Jammer Improved Light Armor Plating Improved Light Armor Plating Relay Coupler [NC] (23) > --- WEAPON (2) ------- Precision Grenade Launcher Impact Mace > --- INVENTORY (15) --- Micro Nuclear Core Improved Airjet Combat Airjet Combat Airjet Combat Airjet Combat Airjet Relay Coupler [NC] (30) Relay Coupler [Sentry] (18) Relay Coupler [Heavy] (11) Precision Beam Rifle Cooled Pulse Rifle Cooled Particle Cannon Rocket Launcher Improved Datajack Impact Mace Peak State ------------ > --- POWER ------------ Heavy Deuterium Engine Meta Core > --- PROPULSION ------- Armored Wheel Armored Wheel Improved Airjet Combat Airjet > --- UTILITY ---------- Large Storage Unit Launcher Guidance Computer Transmission Jammer Improved Light Armor Plating Improved Light Armor Plating Relay Coupler [NC] Relay Coupler [Swarmer] > --- WEAPON ----------- Cooled Pulse Rifle Impact Mace > --- INVENTORY -------- Carbon-fiber Leg Wheel Combat Airjet Combat Airjet Combat Airjet Combat Airjet Relay Coupler [NC] Relay Coupler [Sentry] Relay Coupler [Heavy] Precision Beam Rifle Rocket Launcher Precision Grenade Launcher Improved Datajack Impact Mace Gamma Bomb Trap [Rating: 66] Favorites ----------- Power Ion Engine Engine Ion Engine Power Core Light Nuclear Core Propulsion Wheel Treads Light Treads Leg Aluminum Leg Wheel Wheel Hover Unit Combat Airjet Utility Huge Storage Unit Device Improved Heat Sink Storage Huge Storage Unit Processor Targeting Computer Hackware Relay Coupler [Swarmer] Protection Improved Light Armor Plating Weapon Light Assault Rifle Energy Gun Medium Laser Energy Cannon Subdweller Beam Cannon Ballistic Gun Light Assault Rifle Launcher Shock Bomb Launcher Special Weapon Mining Laser Impact Weapon Great Maul Slashing Weapon Katana Special Melee Weapon Datajack Build | -11 -10 -10 -10 -8 -8 -7 -7 -7 ------- Run | Yrd Mat Min Sub Mat Gar Fac Gar Sto Slots Evolved 6 | . . . . 4 . 2 . . Power 1 | . . . . 1 . . . . Propulsion 1 | . . . . 1 . . . . Utility 4 | . . . . 2 . 2 . . Weapon . | . . . . . . . . . Parts Attached 197 | 9 24 9 17 31 22 46 26 13 Power 14 | 1 . . . 3 3 5 1 1 Engine 8 | 1 . . . 1 1 4 . 1 Core 6 | . . . . 2 2 1 1 . Reactor . | . . . . . . . . . Propulsion 68 | 3 13 4 8 17 2 13 5 3 Treads 20 | 2 5 2 4 5 1 1 . . Leg 11 | . . . . 3 . 7 1 . Wheel 34 | 1 8 2 4 9 1 5 2 2 Hover 3 | . . . . . . . 2 1 Flight . | . . . . . . . . . Utility 36 | 2 4 1 6 3 6 9 4 1 Device 15 | 1 1 1 4 2 3 3 . . Storage 3 | 1 1 . . . . 1 . . Processor 3 | . . . . 1 . 1 1 . Hackware 5 | . . . . . 2 3 . . Protection 10 | . 2 . 2 . 1 1 3 1 Artifact . | . . . . . . . . . Weapon 79 | 3 7 4 3 8 11 19 16 8 Energy Gun 12 | 1 1 . . . 1 1 4 4 Energy Cannon 3 | . . . . 1 . 1 . 1 Ballistic Gun 20 | 2 3 2 . 1 3 6 2 1 Ballistic Cannon . | . . . . . . . . . Launcher 14 | . 1 . 1 2 3 2 4 1 Special Weapon 7 | . 1 2 2 2 . . . . Impact Weapon 15 | . 1 . . 2 3 4 4 1 Slashing Weapon 2 | . . . . . . 2 . . Piercing Weapon . | . . . . . . . . . Special Melee Weapon 6 | . . . . . 1 3 2 . Unidentified Prototypes 11 | . . . . . . 3 . 8 Corrupted Parts 6 | . . . . . . 1 5 . System Corruption 28 | . . . . . . 6 22 . Parts Lost 46 | . . . 1 13 7 18 5 2 Power 9 | . . . . 3 1 5 . . Propulsion 20 | . . . . 5 4 8 2 1 Utility 11 | . . . 1 3 2 2 2 1 Weapon 6 | . . . . 2 . 3 1 . Highest Loss Streak 6 | . . . 1 6 2 6 2 1 To Critical Strikes . | . . . . . . . . . Average Slot Usage (%) 82 | . 100 100 99 87 62 76 82 98 Engine 6 | . 14 14 14 6 1 3 6 6 Core 3 | . . . . 7 6 2 2 6 Treads 4 | . 6 8 2 5 7 2 . . Leg 4 | . . . . 2 . 10 12 . Wheel 12 | . 21 19 25 18 10 3 5 17 Device 7 | . 12 1 12 13 4 6 6 6 Storage 9 | . 14 14 14 9 9 7 6 6 Processor 2 | . . . . 8 . 3 4 6 Hackware 7 | . . . . . 1 17 14 11 Protection 4 | . 1 12 1 . 5 . 5 13 Energy Gun 2 | . 7 . . . 2 . 4 2 Ballistic Gun 8 | . 18 23 20 7 2 5 5 1 Launcher 1 | . . 4 1 2 2 . . 1 Impact Weapon 2 | . . . . 1 6 2 1 4 Peak Build Rating 66 | 8 10 10 13 24 23 39 63 66 Average Rating 24 | 5 8 10 10 18 19 28 40 61 On Entrance 19 | . 8 10 10 11 12 23 38 63 Naked Turns . | . . . . . . . . . Heaviest Build 108 | 15 90 90 90 101 108 95 54 54 Greatest Support 40 | 40 40 40 40 36 36 40 40 34 Greatest Overweight (x) 30 | . 3 4 5 9 10 30 2 5 Average Overweight (x) 3 | . 2 3 3 2 6 4 1 3 Largest Inventory Capacity 25 | 8 25 25 25 25 25 25 15 15 Average Capacity 22 | 7 22 25 25 25 25 23 15 15 Most Carried 25 | 8 25 25 25 25 25 25 15 15 Average Carried 20 | 5 14 24 24 23 22 22 13 14 Final Capacity 25 | 8 25 25 25 25 25 15 15 15 Final Carried 25 | 8 25 24 25 24 25 13 15 15 Class Distribution -------------------- 46% | Mutant 36% | Bothacker-Mutant 17% | Scavenger-Mutant Dominant Class ---------------- Mutant | -10/Materials Mutant | -10/Mines Mutant | -10/Subcaves Mutant | -8/Materials Mutant | -8/Garrison Bothacker-Mutant | -7/Factory Bothacker-Mutant | -7/Garrison Scavenger-Mutant | -7/Storage Resources | -11 -10 -10 -10 -8 -8 -7 -7 -7 ----------- Run | Yrd Mat Min Sub Mat Gar Fac Gar Sto Matter Collected 3052 | 308 313 181 6 462 388 621 540 233 Remotely . | . . . . . . . . . Salvage Created 4205 | 141 318 225 56 573 620 903 982 387 Parts 223 | 9 28 13 3 31 28 44 51 16 Haulers Intercepted 1 | . . . . . . . . 1 Recyclers Shooed 3 | . 1 . . . . 1 . 1 Parts Field Recycled . | . . . . . . . . . Retrieved Matter . | . . . . . . . . . Parts Self-Destructed 14 | . . . 14 . . . . . Prevented . | . . . . . . . . . Kills | -11 -10 -10 -10 -8 -8 -7 -7 -7 ------- Run | Yrd Mat Min Sub Mat Gar Fac Gar Sto Combat Hostiles Destroyed 85 | . 9 6 2 11 17 12 22 6 Melee 7 | . . . . . 1 3 1 2 Guns 32 | . 9 6 . 2 4 5 6 . Cannons 4 | . . . . 3 . 1 . . AOE 36 | . . . 2 5 9 2 15 3 Classes Destroyed 15 | 2 5 1 1 3 1 1 . 1 Worker 4 | . 1 . . . . 1 . 2 Builder 8 | . . . . 4 . 3 . 1 Tunneler 4 | 2 . 1 . . . 1 . . Hauler 1 | . . . . . . . . 1 Recycler 7 | 1 . . . 1 . 4 . 1 Operator 3 | . 1 . . 1 . 1 . . Watcher 3 | . 1 . . 2 . . . . Swarmer 32 | . 5 . . 3 7 . 15 2 Grunt 33 | . 4 5 . 3 7 8 5 1 Duelist 3 | . . . . . 3 . . . Sentry 7 | . . . . 3 . 1 1 2 Hunter 3 | . . . . 2 . . 1 . Programmer 4 | . . . . . . 3 . 1 Subdweller 2 | . . . 2 . . . . . Assembled 1 | . . 1 . . . . . . Best Kill Streak 8 | 1 3 5 2 8 4 3 6 4 Combat Bots Only 6 | . 2 4 2 3 4 3 6 2 Max Kills in Single Turn 4 | 1 2 2 1 3 2 4 3 2 Gunslinging 1 | . 1 1 . . . . . . Exploded 3 | . . . 1 2 2 1 3 2 Melee 1 | . . . . . 1 1 1 1 Uniques/NPCs Destroyed . | . . . . . . . . . Combat | -11 -10 -10 -10 -8 -8 -7 -7 -7 -------- Run | Yrd Mat Min Sub Mat Gar Fac Gar Sto Hostile Shots Fired 648 | . 52 24 7 101 81 220 84 79 Missed 224 | . 16 4 5 29 26 90 26 28 Damage Taken 5789 | . 398 411 92 1073 787 1768 722 538 Core 1228 | . 56 161 10 197 91 572 92 49 Absorbed by Shields 50 | . . . . . . . 50 . Redirected to Shielding 34 | . 5 29 . . . . . . Core Remaining (%) 52 | 100 . . 9 . 47 . . . Volleys Fired 279 | 6 53 23 12 38 40 25 64 18 Largest 2 | 2 2 2 1 2 2 2 2 2 Hottest 100 | 70 100 100 100 100 50 60 78 78 Shots Fired 381 | 12 86 42 12 52 45 34 78 20 Gun 287 | 12 83 38 . 21 29 26 68 10 Cannon 26 | . . . . 14 . 4 . 8 Launcher 45 | . . . 5 8 16 4 10 2 Special 23 | . 3 4 7 9 . . . . Kinetic 205 | 6 68 38 . 21 23 26 21 2 Thermal 76 | 6 18 4 7 23 6 4 . 8 Explosive 26 | . . . 5 4 3 2 10 2 Electromagnetic 74 | . . . . 4 13 2 47 8 Robot Hit Streak 29 | 5 8 9 5 12 5 29 16 5 Robot Miss Streak 7 | 1 3 3 . 1 3 6 7 3 Penetration Max . | . . . . . . . . . Secondary Targets 4 | . 1 2 . . 1 . . . Max Gunslinging Chain 1 | . 1 1 . . 1 . . . Shots Hit Robots 295 | 8 45 26 1 35 30 72 60 18 Core Hits 226 | 4 23 14 4 27 28 38 74 14 Critical Kills 3 | . . . . . 1 . . 2 Critical Parts Destroyed 8 | . . . . 2 3 1 1 1 Critical Strikes 19 | 1 3 . . 2 4 5 1 3 Burn 4 | 1 3 . . . . . . . Meltdown 1 | . . . . . . . . 1 Destroy 1 | . . . . . 1 . . . Smash 9 | . . . . 2 3 1 1 2 Sever 4 | . . . . . . 4 . . Melee Attacks 125 | . 7 . . 6 34 58 6 14 Impact 78 | . 7 . . 6 29 16 6 14 Slashing 36 | . . . . . . 36 . . Piercing . | . . . . . . . . . Sneak Attacks 22 | . . . . 1 5 14 . 2 Combat Hostiles . | . . . . . . . . . Follow-up Attacks . | . . . . . . . . . Damage Inflicted 10059 | 105 465 218 210 1393 1352 2339 2951 1026 Guns 2564 | 105 465 218 . 132 159 387 999 99 Cannons 476 | . . . . 274 . 92 . 110 Explosions 4156 | . . . 210 763 765 266 1851 301 Melee 2863 | . . . . 224 428 1594 101 516 Ramming . | . . . . . . . . . Kinetic 1498 | 55 315 218 . 132 110 387 257 24 Thermal 968 | 50 150 . . 274 49 92 131 222 Explosive 3242 | . . . 210 632 336 155 1720 189 Electromagnetic 1488 | . . . . 131 429 111 742 75 Impact 1943 | . . . . 224 428 674 101 516 Slashing 920 | . . . . . . 920 . . Piercing . | . . . . . . . . . Highest Corruption 30 | . . . . . . 7 29 30 Average Corruption 10 | . . . . . . 3 14 29 Corruption Purged 5 | . . . . . . 5 . . Corruption Blocked . | . . . . . . . . . Effects 100 | . . . . . . 30 37 33 Message Errors 18 | . . . . . . 4 6 8 Matter Fused 27 | . . . . . . 9 12 6 Heat Flow Errors 11 | . . . . . . 5 5 1 Energy Discharges 13 | . . . . . . 4 6 3 Parts Fused 1 | . . . . . . . . 1 Data Loss (minor) 10 | . . . . . . 3 1 6 Data Loss (major) 7 | . . . . . . 3 3 1 Misfires 7 | . . . . . . 2 3 2 Alerts 1 | . . . . . . . 1 . Misdirections 2 | . . . . . . . . 2 Weapon Failures 3 | . . . . . . . . 3 Overload Shots . | . . . . . . . . . Overflow Damage 979 | . . . 11 232 264 139 148 185 Projectiles 16 | . . . . 16 . . . . Explosions 174 | . . . 11 75 7 . 81 . Melee 789 | . . . . 141 257 139 67 185 Knockbacks 9 | . . . . 1 5 3 . . Impact 8 | . . . . 1 4 3 . . Kinetic . | . . . . . . . . . Secondary 1 | . . . . . 1 . . . Self-Inflicted Damage 302 | . . . 79 95 38 12 67 11 Shots 12 | . . . 3 2 3 1 2 1 Rammed . | . . . . . . . . . Targets Rammed . | . . . . . . . . . Kicked . | . . . . . . . . . Crushed . | . . . . . . . . . Highest Temperature 226 | 36 81 60 . 173 65 193 226 115 Average Temperature 44 | 15 24 20 . 57 17 64 65 26 Received Heat Transfer 1681 | . 147 190 12 369 270 531 45 117 Siege Activations . | . . . . . . . . . Robots Corrupted 9 | . . . . 2 4 1 2 . Combat Hostiles 6 | . . . . 1 3 1 1 . Parts Fried 17 | . . . . 4 5 . 6 2 Impact Corruptions 26 | . . . . 7 8 4 1 6 Robots Melted 1 | . . . . . . . . 1 Combat Hostiles 1 | . . . . . . . . 1 Parts Melted 8 | . 1 . . . . 3 . 4 Heat Transferred 1952 | 222 666 . . 370 148 148 100 298 Parts Sabotaged . | . . . . . . . . . Parts Stolen . | . . . . . . . . . Parts Stripped . | . . . . . . . . . Power Chain Reactions 4 | . . . . . . . 2 2 Alert | -11 -10 -10 -10 -8 -8 -7 -7 -7 ------- Run | Yrd Mat Min Sub Mat Gar Fac Gar Sto Peak Influence 814 | 15 146 120 . 205 814 438 785 595 Initial 427 | . 9 17 . . 26 427 . 382 Average 233 | 6 60 29 . 107 413 117 414 491 Maximum Alert Level 3 | . . . . 1 3 2 3 2 Low Security (%) 56 | 100 100 100 . 78 16 80 19 . Level 1 18 | . . . . 21 39 7 37 9 Level 2 18 | . . . . . 24 11 27 90 Level 3 6 | . . . . . 19 . 15 . Level 4 . | . . . . . . . . . Level 5 . | . . . . . . . . . High Security . | . . . . . . . . . Max Security . | . . . . . . . . . Squads Dispatched 11 | . 2 . . 1 . 5 . 3 Investigation 1 | . . . . . . 1 . . Extermination 5 | . . . . . . 4 . 1 Reinforcement 5 | . 2 . . 1 . . . 2 Assault . | . . . . . . . . . Garrison . | . . . . . . . . . Intercept . | . . . . . . . . . Searches Triggered . | . . . . . . . . . Construction Impeded . | . . . . . . . . . Haulers Reinforced 1 | . . . . . . . . 1 Active Scanning Responses . | . . . . . . . . . Cargo Convoy Interrupts . | . . . . . . . . . Stealth | -11 -10 -10 -10 -8 -8 -7 -7 -7 --------- Run | Yrd Mat Min Sub Mat Gar Fac Gar Sto Distress Signals 2 | . . . . 2 . . . . Communications Jammed 31 | . . . . . . . . 31 Distress Signals 31 | . . . . . . . . 31 Times Spotted 128 | . 19 7 2 23 21 21 21 14 Peak Tracking Total 6 | . 4 4 2 6 4 6 4 3 Tactical Retreats 12 | . 2 2 . 2 2 1 2 1 Traps | -11 -10 -10 -10 -8 -8 -7 -7 -7 ------- Run | Yrd Mat Min Sub Mat Gar Fac Gar Sto Traps Triggered 18 | . . . . . 10 1 6 1 Indirectly 3 | . . . . . 3 . . . Trap Hack Attempts 47 | . . . . . . 24 23 . Triggered . | . . . . . . . . . Disarmed . | . . . . . . . . . Reprogrammed 6 | . . . . . . 4 2 . Reused 5 | . . . . . . 3 . 2 Traps Extracted . | . . . . . . . . . Installed 8 | . . . . . . 4 . 4 Triggered 7 | . . . . . 2 3 . 2 Most Traps Carried 8 | . . . . . 8 8 4 4 Machines | -11 -10 -10 -10 -8 -8 -7 -7 -7 ---------- Run | Yrd Mat Min Sub Mat Gar Fac Gar Sto Machines Disabled 12 | . . . 1 1 4 1 3 2 Max in Single Turn 1 | . . . 1 1 1 1 1 1 Garrison Relay 5 | . . . . . 2 . 3 . Machines Repaired . | . . . . . . . . . Machines Dismantled . | . . . . . . . . . Machines Sabotaged . | . . . . . . . . . Overloaded Fab Kills . | . . . . . . . . . Hacking | -11 -10 -10 -10 -8 -8 -7 -7 -7 --------- Run | Yrd Mat Min Sub Mat Gar Fac Gar Sto Machines Accessed 21 | . 4 . 1 5 2 6 1 2 Terminals 16 | . 4 . . 3 2 4 1 2 Fabricators . | . . . . . . . . . Repair Stations . | . . . . . . . . . Recycling Units 1 | . . . . . . 1 . . Scanalyzers 1 | . . . . 1 . . . . Garrison Access 2 | . . . . 1 . 1 . . Total Hacks 48 | . 9 . 1 16 4 14 1 3 Successful 24 | . 3 . 1 10 1 8 1 . Failed 24 | . 6 . . 6 3 6 . 3 Catastrophic 3 | . 1 . . . 1 . . 1 Database Lockouts . | . . . . . . . . . Manual 25 | . 7 . . 4 1 9 1 3 Terminals 39 | . 9 . . 11 4 11 1 3 Fabricators . | . . . . . . . . . Repair Stations . | . . . . . . . . . Recycling Units 2 | . . . . . . 2 . . Scanalyzers 4 | . . . . 4 . . . . Garrison Access 2 | . . . . 1 . 1 . . Terminal Hacks 10 | . 1 . 1 4 1 3 . . Branch Access Points 1 | . . . . 1 . . . . Emergency Access Points 1 | . . . . . 1 . . . Terminal Index 1 | . . . . . . 1 . . Unreport Threat 1 | . . . . . . 1 . . Locate Traps 1 | . . . . 1 . . . . Zone Layout 4 | . 1 . . 2 . 1 . . Derelict Proto ID Bank 1 | . . . 1 . . . . . Fabricator Hacks . | . . . . . . . . . Repair Station Hacks . | . . . . . . . . . Recycling Unit Hacks 1 | . . . . . . 1 . . Retrieve Components 1 | . . . . . . 1 . . Scanalyzer 4 | . . . . 4 . . . . Insert Component 2 | . . . . 2 . . . . Analyze 2 | . . . . 2 . . . . Garrison Access Hacks 2 | . . . . 1 . 1 . . Unlock Access 2 | . . . . 1 . 1 . . Unauthorized Hacks 7 | . 2 . . 1 . 3 1 . Terminals 7 | . 2 . . 1 . 3 1 . Track 1 | . 1 . . . . . . . Botnet 5 | . 1 . . 1 . 2 1 . Operators 1 | . . . . . . 1 . . Fabricators . | . . . . . . . . . Repair Stations . | . . . . . . . . . Recycling Units . | . . . . . . . . . Scanalyzers . | . . . . . . . . . Garrison Access . | . . . . . . . . . Data Cores Recovered . | . . . . . . . . . Used . | . . . . . . . . . Hacking Detections 16 | . 4 . . 3 2 4 1 2 Full Trace Events . | . . . . . . . . . Feedback Events . | . . . . . . . . . Feedback Blocked . | . . . . . . . . . Robot Schematics Acquired . | . . . . . . . . . Robots Built . | . . . . . . . . . Authchips . | . . . . . . . . . Time . | . . . . . . . . . Total Robot Build Rating . | . . . . . . . . . Part Schematics Acquired 2 | . . . . 2 . . . . Parts Built . | . . . . . . . . . Authchips . | . . . . . . . . . Time . | . . . . . . . . . Total Part Build Rating . | . . . . . . . . . Parts Repaired . | . . . . . . . . . Time . | . . . . . . . . . Parts Recycled . | . . . . . . . . . Recycled Matter . | . . . . . . . . . Retrieved Matter . | . . . . . . . . . Retrieved Components 9 | . . . . . . 9 . . Parts Scanalyzed 2 | . . . . 2 . . . . Part Schematics Acquired 2 | . . . . 2 . . . . Parts Damaged . | . . . . . . . . . Bothacking | -11 -10 -10 -10 -8 -8 -7 -7 -7 ------------ Run | Yrd Mat Min Sub Mat Gar Fac Gar Sto Used RIF Installer 2 | . . . . . 1 . 1 . Watcher Feeds 1 | . . . . . . . 1 . Robots Hacked 2 | . . . . . . 2 . . Non-combat 2 | . . . . . . 2 . . Combat . | . . . . . . . . . Robot Hacks Applied 6 | . . . . . . 6 . . no_distress 1 | . . . . . . 1 . . find_chute 1 | . . . . . . 1 . . deconstruct_machine 1 | . . . . . . 1 . . purge_threat 1 | . . . . . . 1 . . block_reporting 1 | . . . . . . 1 . . formatsys_low 1 | . . . . . . 1 . . Relay Couplers Released 18 | . . . . . 8 . 10 . Machine Destruction 18 | . . . . . 8 . 10 . Attached 3 | . . . . . 2 1 . . Fabnet Peak Effective % . | . . . . . . . . . Robots Rewired 3 | . . . . . 3 . . . Allies Hacked . | . . . . . . . . . Hacks Repelled . | . . . . . . . . . Allies | -11 -10 -10 -10 -8 -8 -7 -7 -7 -------- Run | Yrd Mat Min Sub Mat Gar Fac Gar Sto Total Allies 4 | . . . . . 3 1 . . Largest Group 3 | . . . . . 3 2 . . Highest-Rated Group 48 | . . . . . 48 32 . . Highest-Rated Ally 26 | . . . . . 16 26 . . Total Orders 2 | . . . . . . 2 . . STAY 1 | . . . . . . 1 . . FOLLOW 1 | . . . . . . 1 . . Ally Attacks 63 | . . . . . 45 18 . . Total Damage 808 | . . . . . 553 255 . . Kills 6 | . . . . . 5 1 . . Allies Corrupted 1 | . . . . . . 1 . . Allies Melted . | . . . . . . . . . Intel | -11 -10 -10 -10 -8 -8 -7 -7 -7 ------- Run | Yrd Mat Min Sub Mat Gar Fac Gar Sto Robot Analysis Total . | . . . . . . . . . Derelict Logs Recovered . | . . . . . . . . . Drone Launches . | . . . . . . . . . Drone Recoveries . | . . . . . . . . . Exploration | -11 -10 -10 -10 -8 -8 -7 -7 -7 ------------- Run | Yrd Mat Min Sub Mat Gar Fac Gar Sto Turns Passed 8555 | 143 1006 514 603 813 1751 2080 1037 608 Spaces Moved 3800 | 69 521 100 336 458 748 725 507 336 Core 3 | 1 . . . . . 2 . . Treads 226 | 60 94 9 1 . . 62 . . Legs 599 | . . . . . . 334 265 . Wheels 2972 | 8 427 91 335 458 748 327 242 336 Hover . | . . . . . . . . . Flight . | . . . . . . . . . Fastest Speed 50 | 50 135 135 135 116 116 120 105 101 Average Speed 171 | 151 141 153 136 132 192 242 154 136 Slowest Speed 1550 | 160 320 320 320 215 230 1550 260 155 Overloaded Moves . | . . . . . . . . . Propulsion Burnouts . | . . . . . . . . . Robots Hopped . | . . . . . . . . . Cave-ins Triggered 1 | . . 1 . . . . . . Exploration Rate (%) 40 | 7 76 26 26 36 73 12 54 53 Regions Visited 8 Branch Regions 3 Pre-discovered Areas 1 | . . . . . . . . 1 Known Exits Taken 2 | . . . . 1 . 1 . . Unknown Exits Taken 4 | 1 1 1 1 . . . . . Scrap Searched . | . . . . . . . . . Spaces Dug 113 | . 5 1 23 31 5 6 39 3 Terrain Destroyed 206 | . 5 1 29 48 5 20 70 28 Melee 11 | . 2 . . 1 2 6 . . Projectile 19 | . 3 1 . 11 . . . 4 AOE 176 | . . . 29 36 3 14 70 24 Terrain Rammed . | . . . . . . . . . Walls Destroyed . | . . . . . . . . . Machines Disabled . | . . . . . . . . . Actions | -11 -10 -10 -10 -8 -8 -7 -7 -7 --------- Run | Yrd Mat Min Sub Mat Gar Fac Gar Sto Total 5214 | 93 689 414 445 578 958 926 669 442 Wait 544 | . 58 280 77 26 54 12 . 37 Move 3794 | 68 520 99 335 458 747 725 506 336 Hop . | . . . . . . . . . Pick Up 86 | 8 20 1 3 12 20 7 10 5 Fast Attach 52 | 7 . . . 2 3 28 5 7 Attach 34 | 1 . . 1 10 10 5 6 1 Detach 3 | 1 . . . . . . . 2 Swap 111 | 1 24 9 16 19 9 13 15 5 Drop 67 | 1 7 2 1 7 9 24 3 13 Fire 279 | 6 53 23 12 38 40 25 64 18 Melee 125 | . 7 . . 6 34 58 6 14 Ram . | . . . . . . . . . Kick . | . . . . . . . . . Crush . | . . . . . . . . . Escape Stasis 63 | . . . . . 32 . 31 . Rewire 1 | . . . . . . 1 . . Trap 55 | . . . . . . 28 23 4 Miscellaneous . | . . . . . . . . . Route ------- -11/Scrapyard -10/Materials (discovered 3 exits: [*Mat x2] / [*Min]) -10/Mines -10/Subcaves -8/Materials -8/Garrison (discovered 2 exits: *Fac / [*Mat]) -7/Factory -7/Garrison (discovered 2 exits: *Sto x2) -7/Storage (discovered 1 exit: [*Fac]) History --------- Turn | Location | Event 15 | -11/Scrapyard | Discovered new exit (range 15) 144 | -11/Scrapyard | Entered Materials 274 | -10/Materials | Discovered new exit (range 16) 320 | -10/Materials | Build established: Mutant 414 | -10/Materials | Discovered new exit (range 10) 1089 | -10/Materials | Discovered new exit (range 14) 1150 | -10/Materials | Entered Mines 1216 | -10/Mines | Excavation squad dispatched 1216 | -10/Mines | A large section of the Mines collapsed 1439 | -10/Mines | Crushed by falling debris 1439 | -10/Mines | Core integrity fell below 50% 1466 | -10/Mines | Excavation squad dispatched 1625 | -10/Mines | Core integrity fell below 20% 1650 | -10/Mines | Discovered new exit (range 10) 1664 | -10/Mines | Entered Subcaves 1952 | -10/Subcaves | Visited 4L-MR0's lab 1974 | -10/Subcaves | Found Meta Core 2081 | -10/Subcaves | Ambushed by Subdwellers from Twisted Machinery 2246 | -10/Subcaves | Discovered new exit (range 16) 2267 | -10/Subcaves | Entered Materials 2267 | -8/Materials | Evolved 4 slots: Power x1, Propulsion x1, Utility x2 2982 | -8/Materials | Lost 6 parts (1p2n1u2w) 3080 | -8/Materials | Identified exit to Garrison 3080 | -8/Materials | Entered Garrison 3185 | -8/Garrison | Triggered checkpoint 3373 | -8/Garrison | Garrison Relay disabled 3380 | -8/Garrison | Build established: Scavenger-Mutant 3578 | -8/Garrison | Triggered checkpoint 3595 | -8/Garrison | Garrison Relay disabled 3703 | -8/Garrison | Build established: Mutant 3748 | -8/Garrison | Triggered checkpoint 4029 | -8/Garrison | Discovered new exit (range 15) 4039 | -8/Garrison | Discovered new exit (range 6) 4059 | -8/Garrison | Core integrity fell below 50% 4120 | -8/Garrison | Triggered checkpoint 4262 | -8/Garrison | Triggered checkpoint 4312 | -8/Garrison | Triggered checkpoint 4368 | -8/Garrison | Triggered checkpoint 4430 | -8/Garrison | Triggered checkpoint 4444 | -8/Garrison | Installed Relay Interface Framework 4831 | -8/Garrison | Entered Factory 4831 | -7/Factory | Accompanied by 2 allies 4831 | -7/Factory | Evolved 2 slots: Utility x2 5049 | -7/Factory | Build established: Bothacker-Mutant 5204 | -7/Factory | Lost 3 parts (2p1n) 5648 | -7/Factory | Lost 3 parts (1p1n1u) 6066 | -7/Factory | Core integrity fell below 50% 6096 | -7/Factory | Lost 6 parts (1p3n1u1w) 6449 | -7/Factory | Lost 6 parts (1p3n2w) 6499 | -7/Factory | Core integrity fell below 20% 6911 | -7/Factory | Identified exit to Garrison 6911 | -7/Factory | Entered Garrison 6934 | -7/Garrison | Triggered checkpoint 7096 | -7/Garrison | Triggered checkpoint 7517 | -7/Garrison | System corruption reached 10% 7519 | -7/Garrison | Triggered checkpoint 7525 | -7/Garrison | Garrison Relay disabled 7532 | -7/Garrison | Attached Meta Core, gained temporary slots: Propulsion, Utility, Weapon 7596 | -7/Garrison | Triggered checkpoint 7639 | -7/Garrison | Discovered new exit (range 14) 7701 | -7/Garrison | Triggered checkpoint 7775 | -7/Garrison | Triggered checkpoint 7809 | -7/Garrison | Expanded RIF knowledge: Watcher Feeds 7822 | -7/Garrison | Garrison Relay disabled 7857 | -7/Garrison | Discovered new exit (range 13) 7948 | -7/Garrison | Entered Storage 8420 | -7/Storage | Discovered new exit (range 34) 8464 | -7/Storage | System corruption reached 30% 8536 | -7/Storage | Learned location of Armory (-3) 8556 | -7/Storage | Destroyed by G-47 Trooper with Particle Gun Last Messages --------------- 08510_ W-25 Informer distress signal jammed. 08511_ >> Watcher Feeds: Feed link from W-25 Informer lost. 08511_ W-25 Informer distress signal jammed. 08512_ Arm. Wheel destroyed. 08512_ W-25 Informer distress signal jammed. 08519_ G-47 Trooper suffers critical hit (Smash). 08519_ G-47 Trooper destroyed. 08520_ System corrupted: Component data lost. 08534_ A derelict emerges from hiding: "Psst-beep. Hey you, we've already cleared out from here, don't stick around. I stayed behind to warn any stragglers, and you certainly look like you're straggling." 08536_ RH-HXH(g): "We'll attack Armory later, meet at one of the rendevous points." World map updated: -3/Armory. 08536_ RH-HXH(g) slips back into hiding. 08539_ System corrupted: FCS attempts to trigger Prc. Grenade Launcher. 08539_ Launcher Guidance Computer interrupts firing sequence. 08554_ W-25 Informer distress signal jammed. 08555_ W /VOR,VLJXCB28MIWY4QZ2GVTHTA>ZCG 08555_ W-25 Informer distress signal jammed. Map ----- +----------------------------------------------------+ | ????????# # ^ #??# #???????? | | ????????+ # """ #??# #????#### | | ????????# # ^""" #??# #????# | | ????????# # """ #??# ###### | | ????????# + ^ #### !%/ | | ????????# # " " %+ /%* | | ?????#??# # "Y" #### % | | ????? ?# # """ #??###+#/##### | | ?????? ?# # != #????? # | | ??????? # #######+##???? # | | ??????? # #?????# #???? # | | ????????+ #?????# #??? #? | | ????????# ####### #?? *! !#? | | ????????# #?####+########? | | ????????# ####### #????? ?? | | ????????# #?##### ##### ? | | ????????# a #?# + ?? | | ????????# #?# # ####????????? | | ????????# g #?# # #???????????? | | ????????# #?##### #???????????? | | ????????# #######+##+###?????????? | | ????????# # Y #?????????? | | ????????# # """"" #?????????? | | ????????#w # """"" ! #?????????? | | ????????+ /a """"" #????????? | | ????????# @# ##????????? | | ????????# ###""" """####?????????? | | ????????# #?#"""T"""#????????????? | | ????????# < #??########????????????? | | ????????# #??????????????????????? | | ????????#####??????????????????????? | | ???????????????????????????????????? | | ???????????????????????????????????? | | ???????????????????????????????????? | | ???????????????????????????????????? | | | | | | | | | | | | | | | | | | | | | | | | | | | | | | | +----------------------------------------------------+ Best States ------------- Heat Dissipation 62 Energy Generation 30 Energy Capacity 390 Matter Stores 300 Matter Capacity 300 Sight Range 21 Terrain Scan Range 16 Terrain Scan Density 10 Jamming Range 12 Armor Coverage 600 Core Shielding 20 Evasion (%) 55 Targeting Accuracy 5 Launcher Accuracy 20 Recoil Reduction 2 Offensive Hacking 20 Relay Coupler Types 2 Relay Coupler Value 59 Item Schematics ----------------- Shock Bomb Launcher | -8/Materials | Scanalyzed Great Maul | -8/Materials | Scanalyzed Robot Schematics ------------------ None Fabricated ------------ Nothing Alien Tech Used ----------------- None Achievements -------------- None Challenges ------------ None Game ------ Seed ControlBraceLoader Manual? 0 Play Time 01:20:02 Cumulative 388.9 hours Start 2025.01.05 @ 19:45:00 End 2025.01.06 @ 12:51:22 Sessions 3 Manual Loads 0 Difficulty Rogue Special Mode None Game No. 167 Rogue 167 Adventurer 0 Explorer 0 Win Type - Total 13 Types 11/0/1/1/0/0/0/0/0 Lore% 69 Gallery% 79 Achievement% 67 Wizard Run 0 Options --------- Layout 0 ASCII 0 Keyboard 0 Movement Numpad Keybinds 0 Fullscreen 1 Font 24/Smallcaps Map View 76x50 Zoom Use 0% Tactical HUD 1 Map Filters NONE Filters NONE Steam 1 RUN: 7f9eca8b-0af6-454f-9198-81b9643a6a58